bitfinex/quotes_BTCUSD_20220207
["timestamp","ask_amount","ask_price","bid_price","bid_amount"]
[1644201584859,0.005,42544.0,42540.0,0.05]
[1644201585059,0.00034482,42550.0,42540.0,0.05]
[1644201585260,0.005,42541.0,42540.0,0.05]
[1644201585658,0.005,42541.0,42540.0,0.059]
[1644201586759,0.005,42541.0,42540.0,0.05]
[1644201587660,0.005,42541.0,42540.0,0.102]
[1644201588161,0.005,42541.0,42540.0,0.057]
[1644201588609,0.005,42541.0,42540.0,0.05]
[1644201588808,0.005,42541.0,42538.0,0.11815388]
[1644201589013,0.005,42541.0,42538.0,0.00058788]
[1644201589609,0.014,42541.0,42538.0,0.06158788]
[1644201590408,0.014,42541.0,42538.0,0.061]
[1644201590809,0.23094187,42537.0,42532.0,0.058794]
[1644201591109,0.005,42533.0,42532.0,0.0677537]
[1644201591308,0.05,42536.0,42532.0,0.0677537]
[1644201591514,0.323186,42541.0,42532.0,0.0677537]
[1644201591712,0.005,42541.0,42534.0,0.058788]
[1644201592112,0.005,42540.0,42534.0,0.058788]
[1644201592357,0.28192634,42540.0,42535.0,0.0004206]
[1644201592758,0.33192634,42540.0,42535.0,0.0004206]
[1644201592957,0.005,42536.0,42535.0,0.0004206]
[1644201593357,0.005,42536.0,42533.0,0.00042062]
[1644201593556,0.32692634,42540.0,42533.0,0.00042062]
[1644201593758,0.027,42536.0,42535.0,0.009]
[1644201594861,0.005,42539.0,42533.0,0.00044104]
[1644201595461,0.005,42539.0,42533.0,0.04544104]
[1644201595660,0.012,42539.0,42533.0,0.063]
[1644201595862,0.005,42536.0,42535.0,0.28777823]
[1644201596114,0.002,42539.0,42536.0,0.45]
[1644201596514,0.002,42539.0,42535.0,0.41365244]
[1644201596718,0.005,42540.0,42537.0,0.26989684]
[1644201597115,0.005,42540.0,42538.0,0.058785]
[1644201597716,0.005,42540.0,42538.0,0.070785]
[1644201598116,0.005,42540.0,42538.0,0.120785]
[1644201598717,0.005,42540.0,42538.0,0.108785]
[1644201599766,0.005,42540.0,42538.0,0.125785]
[1644201600559,0.02182997,42546.0,42539.0,0.12141982]
[1644201600761,0.02222386,42546.0,42545.0,0.045]
[1644201600962,0.02222386,42546.0,42545.0,0.421836]
[1644201601563,0.9,42544.0,42528.0,0.13252399]
[1644201601760,0.9,42544.0,42519.0,0.26762105]
[1644201601761,0.005,42529.0,42523.0,0.45737474]
[1644201601967,0.05,42541.0,42521.0,0.5]
[1644201601968,0.005,42524.0,42521.0,0.5]
[1644201602162,1.07653521,42528.0,42519.0,0.05]
[1644201602163,0.00147653,42522.0,42519.0,0.05]
[1644201602359,0.83650109,42521.0,42518.0,0.1]
[1644201602559,0.83650109,42521.0,42507.0,0.88549307]
[1644201602560,0.9,42518.0,42507.0,0.05]
[1644201602773,0.00147653,42508.0,42507.0,0.05]
[1644201602962,0.91680279,42508.0,42497.0,0.05]
[1644201603161,0.00147653,42500.0,42497.0,0.05]
[1644201603362,0.0473,42499.0,42497.0,0.05]
[1644201603616,0.66013643,42498.0,42497.0,0.05]
[1644201603811,0.66013643,42498.0,42484.0,0.71905858]
[1644201603812,0.75743643,42498.0,42484.0,0.71905858]
[1644201604014,0.42802643,42498.0,42486.0,0.05]
[1644201604211,0.42802643,42498.0,42473.0,0.97182409]
[1644201604212,0.00147653,42487.0,42473.0,0.5769]
[1644201604412,0.99802643,42498.0,42473.0,0.5769]
[1644201604413,0.00147653,42481.0,42473.0,0.05]
[1644201604615,0.32314056,42485.0,42484.0,0.01846483]
[1644201604812,1.06502638,42485.0,42484.0,0.01846483]
[1644201605012,1.06502638,42485.0,42481.0,0.07370776]
[1644201605214,0.00147653,42482.0,42477.0,0.21906101]
[1644201605412,0.32941,42481.0,42474.0,0.04852347]
[1644201605613,0.32941,42481.0,42473.0,0.24917656]
[1644201605614,0.00147653,42475.0,42473.0,0.41979615]
[1644201605913,0.32265625,42480.0,42474.0,0.04852347]
[1644201606213,0.32265625,42480.0,42473.0,0.41979615]
[1644201606214,0.32941,42479.0,42473.0,0.41979615]
[1644201606414,0.32265625,42480.0,42476.0,0.04852347]
[1644201606415,0.00147653,42478.0,42476.0,0.04852347]
[1644201606913,0.32265625,42480.0,42477.0,0.04852347]
[1644201607274,0.05,42480.0,42478.0,0.04852347]
[1644201607461,0.05,42480.0,42475.0,0.00058769]
[1644201607662,0.32020089,42480.0,42473.0,0.6429009]
[1644201607861,0.27020089,42480.0,42477.0,0.00058766]
[1644201608261,0.27020089,42480.0,42478.0,0.06421525]
[1644201608464,0.15,42481.0,42478.0,0.11273872]
[1644201608662,0.4195892,42481.0,42478.0,0.11273872]
[1644201608860,0.15,42481.0,42478.0,0.11273872]
[1644201609262,0.42232094,42481.0,42478.0,0.11273872]
[1644201609462,0.05,42481.0,42479.0,0.04852347]
[1644201609764,0.1,42481.0,42479.0,0.04852347]
[1644201610564,0.040279,42480.0,42479.0,0.04852347]
[1644201612209,0.0473,42485.0,42479.0,0.32941]
[1644201612419,0.42,42498.0,42492.0,0.34560021]
[1644201612611,0.21522954,42503.0,42497.0,0.04852347]
[1644201612612,0.16137653,42499.0,42497.0,0.04852347]
[1644201612810,0.16137653,42499.0,42493.0,0.41642861]
[1644201612811,0.16137653,42499.0,42494.0,0.04852347]
[1644201613010,0.32941,42502.0,42498.0,0.04852347]
[1644201613211,0.32941,42502.0,42499.0,0.0434]
[1644201613611,0.42,42503.0,42501.0,0.04852347]
[1644201613810,0.32941,42502.0,42501.0,0.04852347]
[1644201614012,0.00347653,42510.0,42501.0,0.09192347]
[1644201614013,0.42,42509.0,42501.0,0.09192347]
[1644201614211,0.42,42509.0,42505.0,0.07047466]
[1644201614411,0.64582251,42509.0,42506.0,0.0434]
[1644201614611,0.32941,42508.0,42506.0,0.0434]
[1644201615262,0.32941,42508.0,42506.0,0.08640947]
[1644201615462,0.32941,42508.0,42506.0,0.037886]
[1644201615667,0.00347653,42510.0,42506.0,0.09440947]
[1644201615863,0.00347653,42510.0,42508.0,0.04852347]
[1644201616066,0.002,42510.0,42509.0,0.66634105]
[1644201616866,0.002,42510.0,42509.0,1.18602456]
[1644201617465,0.001,42517.0,42511.0,0.32941]
[1644201617668,0.001,42517.0,42516.0,0.45273416]
[1644201617865,0.001,42517.0,42516.0,0.46000668]
[1644201618727,0.001,42517.0,42516.0,0.372983]
[1644201618922,0.001,42517.0,42516.0,0.0434]
[1644201619222,0.001,42517.0,42516.0,0.372983]
[1644201619822,0.001,42517.0,42516.0,0.383983]
[1644201620826,0.001,42517.0,42516.0,0.372983]
[1644201621228,0.001,42517.0,42516.0,0.0434]
[1644201621825,0.001,42517.0,42516.0,0.0554]
[1644201622862,0.001,42517.0,42516.0,0.0434]
[1644201623461,0.001,42517.0,42516.0,0.367983]
[1644201623863,0.001,42517.0,42516.0,0.378983]
[1644201624464,0.001,42517.0,42516.0,0.0494]
[1644201624663,0.330583,42517.0,42516.0,0.011]
[1644201624863,0.330583,42517.0,42511.0,0.02139005]
[1644201624864,0.329477,42516.0,42514.0,0.00058725]
[1644201625062,0.62536951,42515.0,42514.0,0.00058725]
[1644201625261,0.67536951,42515.0,42514.0,0.00058725]
[1644201625464,0.77536951,42515.0,42514.0,0.00058725]
[1644201625662,1.01775022,42515.0,42511.0,0.02139005]
[1644201625862,1.01764322,42515.0,42514.0,0.076]
[1644201626112,1.06764322,42515.0,42514.0,0.076]
[1644201626912,1.06764322,42515.0,42502.0,0.47319151]
[1644201627112,0.73816722,42515.0,42502.0,0.47319151]
[1644201627312,0.05,42512.0,42502.0,0.47319151]
[1644201627712,0.05,42512.0,42502.0,0.50219151]
[1644201628314,0.15,42515.0,42507.0,0.08342376]
[1644201628715,0.001,42517.0,42507.0,0.08342376]
[1644201628913,0.05,42516.0,42507.0,0.08342376]
[1644201629116,0.001,42517.0,42509.0,0.20855384]
[1644201629315,0.001,42517.0,42507.0,0.08342376]
[1644201629316,0.25273702,42517.0,42507.0,0.08342376]
[1644201629515,0.329583,42516.0,42509.0,0.00046806]
[1644201629781,0.26853778,42515.0,42509.0,0.01746806]
[1644201629970,0.329477,42514.0,42509.0,0.01746806]
[1644201630170,0.379477,42514.0,42509.0,0.01746806]
[1644201630369,0.329583,42513.0,42509.0,0.017]
[1644201630570,0.15,42514.0,42509.0,0.25795629]
[1644201630571,0.329477,42512.0,42509.0,0.25795629]
[1644201630775,0.05,42512.0,42510.0,0.372983]
[1644201630970,0.05,42514.0,42510.0,0.372983]
[1644201631170,0.001,42517.0,42510.0,0.372983]
[1644201631370,0.001,42517.0,42514.0,0.07664029]
[1644201632071,0.001,42517.0,42515.0,0.329583]
[1644201632270,0.001,42517.0,42516.0,0.62861582]
[1644201632872,0.001,42517.0,42516.0,0.86727448]
[1644201633072,0.001,42517.0,42516.0,1.2465153]
[1644201633274,0.001,42517.0,42516.0,0.94748248]
[1644201633708,0.001,42517.0,42516.0,0.95848248]
[1644201634911,0.001,42517.0,42516.0,0.43364082]
[1644201635712,0.001,42517.0,42516.0,0.77422382]
[1644201637011,0.001,42517.0,42516.0,0.76322382]
[1644201637271,0.001,42517.0,42516.0,0.75222382]
[1644201637564,0.001,42517.0,42516.0,0.70882382]
[1644201637764,0.001,42517.0,42516.0,0.71982382]
[1644201638966,0.001,42517.0,42516.0,0.70882382]
[1644201639565,0.001,42517.0,42516.0,0.37924082]
[1644201639765,0.001,42517.0,42516.0,0.71982382]
[1644201640867,0.001,42517.0,42516.0,0.70882382]
[1644201641720,0.001,42517.0,42516.0,1.07942155]
[1644201642317,0.00077505,42517.0,42516.0,1.07942155]
[1644201642717,0.00077505,42517.0,42516.0,1.22942155]
[1644201642918,0.00077505,42517.0,42516.0,1.22266108]
[1644201643117,0.00077505,42517.0,42516.0,1.17266108]
[1644201643318,0.00077505,42517.0,42516.0,1.2504328]
[1644201643722,0.00077505,42517.0,42516.0,1.17266108]
[1644201643921,0.00077505,42517.0,42516.0,0.85222382]
[1644201644123,0.00077505,42517.0,42516.0,0.90222382]
[1644201644963,0.00077505,42517.0,42516.0,0.80222382]
[1644201645763,0.00077505,42517.0,42516.0,0.86422382]
[1644201646371,0.00077505,42517.0,42516.0,0.81422382]
[1644201646968,0.00077505,42517.0,42516.0,1.04444996]
[1644201647567,0.00077455,42517.0,42516.0,1.04444996]
[1644201647768,0.25885078,42529.0,42523.0,0.31026661]
[1644201647967,0.86833691,42604.0,42526.0,0.05]
[1644201647968,0.45257545,42572.0,42526.0,0.05]
[1644201648169,0.05,42527.0,42524.0,0.0934]
[1644201648369,0.05,42527.0,42524.0,0.1434]
[1644201649419,0.05,42527.0,42526.0,0.26009893]
[1644201649617,0.05,42527.0,42524.0,0.1]
[1644201649819,0.05,42527.0,42524.0,0.06958645]
[1644201650618,0.05,42527.0,42524.0,0.30465173]
[1644201650819,0.05,42527.0,42526.0,0.26103135]
[1644201651019,0.05,42529.0,42524.0,0.33506528]
[1644201651222,0.05,42526.0,42525.0,0.329583]
[1644201651819,0.05,42526.0,42525.0,0.344583]
[1644201652268,0.05,42526.0,42524.0,0.1]
[1644201652461,0.05,42526.0,42524.0,0.05]
[1644201653162,0.04272228,42526.0,42524.0,0.05727772]
[1644201653363,0.1,42535.0,42524.0,0.05727772]
[1644201653865,0.24986372,42536.0,42524.0,0.06727772]
[1644201654063,0.44700097,42536.0,42525.0,0.23216831]
[1644201654270,0.04272228,42526.0,42525.0,0.23216831]
[1644201654865,0.04272228,42526.0,42524.0,0.06]
[1644201655063,0.04272228,42526.0,42524.0,0.04]
[1644201655766,0.04272228,42525.0,42524.0,0.06]
[1644201657119,0.0426471,42525.0,42524.0,0.04]
[1644201657720,0.0426471,42525.0,42524.0,0.148796]
[1644201657721,0.0326471,42525.0,42524.0,0.148796]
[1644201657921,0.0326471,42525.0,42524.0,0.162796]
[1644201658922,0.0326471,42525.0,42524.0,0.148796]
[1644201659325,0.59700097,42536.0,42524.0,0.148796]
[1644201659528,0.0326471,42525.0,42524.0,0.148796]
[1644201659768,0.0326471,42525.0,42524.0,0.162796]
[1644201660361,0.0326471,42525.0,42524.0,0.5097319]
[1644201660561,0.0326471,42525.0,42524.0,0.492379]
[1644201660762,0.0326471,42525.0,42524.0,0.112796]
[1644201661162,0.0326471,42525.0,42524.0,0.098796]
[1644201661764,0.0326471,42525.0,42524.0,0.12233174]
[1644201662968,0.15,42536.0,42524.0,0.12233174]
[1644201662969,0.0326471,42533.0,42524.0,0.42012604]
[1644201663165,0.0326471,42533.0,42527.0,0.0173529]
[1644201663367,0.0326471,42533.0,42529.0,0.25478993]
[1644201663611,0.0326471,42530.0,42529.0,0.25478993]
[1644201663810,0.0326471,42530.0,42529.0,0.01]
[1644201664211,0.0326471,42533.0,42529.0,0.35734068]
[1644201665013,0.0326471,42533.0,42529.0,0.57206724]
[1644201665415,0.0326471,42533.0,42530.0,0.2393941]
[1644201666217,0.0326471,42533.0,42529.0,0.35792708]
[1644201666418,0.003,42538.0,42529.0,0.35792708]
[1644201666419,0.0326471,42535.0,42529.0,0.35792708]
[1644201666620,0.0326471,42530.0,42529.0,0.0105864]
[1644201667018,0.0326471,42530.0,42529.0,0.0005864]
[1644201667664,0.0326471,42530.0,42526.0,0.058794]
[1644201667863,0.27160067,42533.0,42529.0,0.01]
[1644201668064,0.0326471,42530.0,42529.0,0.01]
[1644201668465,0.27160067,42533.0,42529.0,0.01]
[1644201668664,0.30424777,42533.0,42529.0,0.01]
[1644201669066,0.30424777,42533.0,42529.0,0.00046785]
[1644201669565,0.0326471,42530.0,42529.0,0.00046785]
[1644201669764,0.0326471,42530.0,42529.0,0.01246785]
[1644201670165,0.0326471,42530.0,42529.0,0.012]
[1644201671112,0.0326471,42530.0,42527.0,0.00044211]
[1644201671314,0.0326471,42530.0,42526.0,0.058794]
[1644201671512,0.0326471,42530.0,42527.0,0.00056037]
[1644201671912,0.0326471,42531.0,42527.0,0.00056037]
[1644201672816,0.38147949,42535.0,42527.0,0.00056037]
[1644201673013,0.0326471,42528.0,42527.0,0.00056037]
[1644201673312,0.0326471,42531.0,42528.0,0.058793]
[1644201673713,0.15,42535.0,42528.0,0.058793]
[1644201673913,0.1826471,42535.0,42528.0,0.069793]
[1644201674514,0.0326471,42529.0,42528.0,0.069793]
[1644201674767,0.23946482,42532.0,42528.0,0.011]
[1644201674962,0.0243824,42533.0,42528.0,0.011]
[1644201675163,0.0243824,42533.0,42527.0,0.117579]
[1644201675361,0.12962533,42525.0,42524.0,0.37716849]
[1644201675561,0.12962533,42525.0,42524.0,0.66677886]
[1644201675762,0.12962533,42525.0,42524.0,0.95664837]
[1644201675763,0.17962533,42525.0,42524.0,0.95664837]
[1644201675962,0.17962533,42525.0,42524.0,1.14735649]
[1644201676164,0.17962533,42525.0,42524.0,0.65316126]
[1644201676365,0.17962533,42525.0,42524.0,0.67877886]
[1644201677161,0.17962533,42525.0,42524.0,0.3952006]
[1644201677563,0.17962533,42525.0,42524.0,0.68432944]
[1644201677764,0.17962533,42525.0,42524.0,0.3952006]
[1644201677962,0.17962533,42525.0,42524.0,0.4062006]
[1644201678265,0.20400773,42525.0,42524.0,0.051]
[1644201678722,0.20400773,42525.0,42522.0,0.00042272]
[1644201678723,0.09057945,42523.0,42522.0,0.00042272]
[1644201678923,0.329583,42523.0,42522.0,0.00042272]
[1644201679123,0.379583,42523.0,42522.0,0.00042272]
[1644201679724,0.20397871,42521.0,42519.0,0.02025682]
[1644201679926,0.052,42523.0,42520.0,0.00054101]
[1644201680129,0.05,42521.0,42520.0,0.00054101]
[1644201680329,0.002,42523.0,42521.0,0.329583]
[1644201680524,0.002,42523.0,42522.0,0.0421]
[1644201680725,0.002,42523.0,42522.0,0.371683]
[1644201680925,0.002,42523.0,42522.0,0.59270474]
[1644201681124,0.0243824,42534.0,42523.0,0.9]
[1644201681326,0.393,42538.0,42530.0,0.058785]
[1644201681327,0.03477782,42535.0,42530.0,0.058785]
[1644201681526,0.03477782,42535.0,42531.0,0.0471]
[1644201682125,0.0343824,42535.0,42531.0,0.0471]
[1644201682362,0.03477791,42535.0,42531.0,0.0471]
[1644201683360,0.0343824,42535.0,42531.0,0.0471]
[1644201683560,0.03477791,42535.0,42531.0,0.0471]
[1644201683961,0.03477791,42535.0,42531.0,0.0531]
[1644201684560,0.0343824,42535.0,42531.0,0.0531]
[1644201684760,0.03468904,42535.0,42531.0,0.0531]
[1644201685159,0.03468904,42535.0,42531.0,0.0471]
[1644201685762,0.0343824,42534.0,42530.0,0.108785]
[1644201686011,0.0343824,42534.0,42531.0,0.01]
[1644201687211,0.0343824,42534.0,42530.0,0.05]
[1644201687411,0.0343824,42534.0,42531.0,0.0156176]
[1644201687611,0.0343824,42534.0,42531.0,0.058786]
[1644201687812,0.0343824,42534.0,42531.0,0.069786]
[1644201688115,0.0343824,42534.0,42533.0,0.0156176]
[1644201688513,0.00030664,42535.0,42532.0,0.07919618]
[1644201688714,0.00030664,42535.0,42532.0,0.19675918]
[1644201688913,0.00030664,42535.0,42534.0,0.0156176]
[1644201689114,0.00030664,42535.0,42532.0,0.117563]
[1644201689314,0.0343824,42536.0,42532.0,0.117563]
[1644201689516,0.0343824,42536.0,42530.0,0.0971]
[1644201689771,0.0343824,42536.0,42530.0,0.1471]
[1644201689966,0.0343824,42536.0,42532.0,0.01]
[1644201690165,0.25459626,42536.0,42532.0,0.01]
[1644201690470,0.0343824,42533.0,42532.0,0.01]
[1644201690672,0.3639654,42533.0,42532.0,0.01]
[1644201690866,0.4139654,42533.0,42532.0,0.01]
[1644201691066,0.5139654,42533.0,42527.0,0.01868331]
[1644201691266,0.0343824,42529.0,42527.0,0.01868331]
[1644201691770,0.0343824,42529.0,42527.0,0.07747531]
[1644201692067,0.0343824,42529.0,42528.0,0.0156176]
[1644201692565,0.05,42533.0,42528.0,0.0156176]
[1644201692766,0.00032658,42535.0,42527.0,0.09747531]
[1644201692767,0.03470898,42535.0,42527.0,0.09747531]
[1644201692966,0.05,42533.0,42527.0,0.09747531]
[1644201693171,0.0343824,42528.0,42524.0,0.34682467]
[1644201693367,0.0343824,42531.0,42524.0,0.05052048]
[1644201693814,0.0343824,42531.0,42524.0,0.06352048]
[1644201694214,0.25089129,42536.0,42528.0,0.0156176]
[1644201694414,0.00032208,42535.0,42528.0,0.0156176]
[1644201694615,0.0343824,42529.0,42520.0,0.5248687]
[1644201694815,0.9,42534.0,42520.0,0.34617199]
[1644201694816,0.0343824,42521.0,42520.0,0.34617199]
[1644201695315,0.0343824,42521.0,42517.0,0.0156176]
[1644201695316,0.28534042,42521.0,42517.0,0.0156176]
[1644201695515,0.27537919,42520.0,42518.0,0.00042426]
[1644201695716,0.39420058,42523.0,42518.0,0.00042426]
[1644201696113,0.39420058,42523.0,42517.0,0.09004186]
[1644201696314,0.75,42522.0,42517.0,0.09004186]
[1644201696513,0.39420058,42523.0,42517.0,0.07442426]
[1644201696715,0.39420058,42523.0,42517.0,0.09004186]
[1644201697115,0.39420058,42523.0,42517.0,0.14884686]
[1644201697367,0.38920058,42523.0,42517.0,0.13322926]
[1644201697566,0.68066869,42533.0,42520.0,0.07632359]
[1644201697567,0.28346286,42530.0,42520.0,0.07632359]
[1644201697871,2.22206083,42553.0,42517.0,0.13322926]
[1644201697872,0.2024314,42542.0,42530.0,0.9]
[1644201698071,0.2024314,42542.0,42541.0,0.0156176]
[1644201698072,0.001,42542.0,42541.0,0.0156176]
[1644201698271,0.001,42542.0,42541.0,0.0627176]
[1644201698468,0.02082997,42546.0,42542.0,0.9]
[1644201698667,0.02082997,42546.0,42545.0,0.59648429]
[1644201698866,0.02082997,42546.0,42545.0,0.89271878]
[1644201698867,0.01838355,42546.0,42545.0,0.89271878]
[1644201699067,0.01838355,42546.0,42545.0,0.59648429]
[1644201699266,0.01838355,42546.0,42545.0,0.61724067]
[1644201699469,0.01838355,42546.0,42545.0,0.535449]
[1644201699668,0.01838355,42546.0,42545.0,0.83142261]
[1644201699868,0.01838355,42546.0,42545.0,0.108866]
[1644201700069,0.01838355,42546.0,42545.0,0.003]
[1644201700274,0.50680175,42546.0,42545.0,0.003]
[1644201700471,0.68735414,42546.0,42545.0,0.003]
[1644201701125,0.73735414,42546.0,42545.0,0.003]
[1644201701327,0.39796655,42546.0,42542.0,0.058782]
[1644201701525,0.06838355,42546.0,42542.0,0.058782]
[1644201701724,0.01838355,42546.0,42542.0,0.058782]
[1644201701926,0.01838355,42546.0,42542.0,0.061782]
[1644201701927,0.09638355,42546.0,42542.0,0.061782]
[1644201702124,0.14638355,42546.0,42543.0,0.3452006]
[1644201702325,0.14638355,42546.0,42543.0,0.329583]
[1644201702527,0.14638355,42546.0,42542.0,0.003]
[1644201703225,0.0343824,42545.0,42539.0,0.02147264]
[1644201703529,0.24318643,42540.0,42539.0,0.02147264]
[1644201703723,0.29318643,42540.0,42539.0,0.02147264]
[1644201703925,0.26176453,42543.0,42539.0,0.02547264]
[1644201704426,0.329583,42542.0,42539.0,0.02547264]
[1644201704866,0.0343824,42540.0,42539.0,0.02547264]
[1644201705065,0.56155857,42540.0,42539.0,0.02547264]
[1644201705268,0.61155857,42540.0,42528.0,0.1331846]
[1644201705566,0.24769917,42540.0,42531.0,0.0156176]
[1644201705766,0.24769917,42540.0,42534.0,0.02127622]
[1644201705966,0.0343824,42539.0,42534.0,0.02127622]
[1644201706174,0.19104075,42536.0,42534.0,0.07127622]
[1644201706370,0.0343824,42535.0,42534.0,0.07127622]
[1644201706570,0.0343824,42535.0,42534.0,0.02127622]
[1644201707168,0.0343824,42535.0,42529.0,0.02172176]
[1644201707370,0.19739783,42533.0,42529.0,0.02172176]
[1644201707573,0.0343824,42530.0,42529.0,0.02172176]
[1644201707970,0.0343824,42530.0,42529.0,0.02772176]
[1644201709219,0.0343824,42530.0,42527.0,0.058793]
[1644201709822,0.0343824,42530.0,42526.0,0.33539712]
[1644201710022,0.0343824,42530.0,42527.0,0.009]
[1644201711222,0.0343824,42530.0,42525.0,0.05]
[1644201711425,0.19368761,42529.0,42525.0,0.05]
[1644201712023,0.19368761,42529.0,42525.0,0.053]
[1644201712481,0.19408548,42529.0,42525.0,0.053]
[1644201712883,0.24408548,42529.0,42525.0,0.003]
[1644201713083,0.05039787,42529.0,42525.0,0.003]
[1644201713284,0.00039787,42529.0,42526.0,0.329583]
[1644201713483,0.0343824,42530.0,42525.0,0.0156176]
[1644201713683,0.00039787,42529.0,42525.0,0.0156176]
[1644201714086,0.00039787,42529.0,42528.0,0.0156176]
[1644201714486,0.00039787,42529.0,42525.0,0.1264106]
[1644201714686,0.34801064,42530.0,42525.0,0.1264106]
[1644201715286,0.34801064,42530.0,42525.0,0.1244106]
[1644201716125,0.34801064,42530.0,42525.0,0.002]
[1644201716126,0.26564347,42528.0,42525.0,0.002]
[1644201716323,0.05,42528.0,42525.0,0.002]
[1644201716726,0.34840851,42530.0,42525.0,0.002]
[1644201716925,0.34801064,42530.0,42525.0,0.002]
[1644201717324,0.34840851,42530.0,42524.0,0.167578]
[1644201718123,0.34801064,42530.0,42524.0,0.170578]
[1644201718325,0.0843824,42530.0,42524.0,0.170578]
[1644201718524,0.00039787,42529.0,42524.0,0.170578]
[1644201719327,0.0343824,42530.0,42525.0,0.0156176]
[1644201719774,0.00039787,42529.0,42525.0,0.0156176]
[1644201720063,0.00039787,42529.0,42525.0,0.0186176]
[1644201720263,0.00039787,42529.0,42528.0,0.0156176]
[1644201720566,0.0343824,42530.0,42525.0,0.0186176]
[1644201720764,0.28277862,42531.0,42525.0,0.0186176]
[1644201720964,0.0343824,42530.0,42525.0,0.0186176]
[1644201721365,0.0343824,42530.0,42525.0,0.0156176]
[1644201721564,0.0343824,42530.0,42524.0,0.1831956]
[1644201721766,0.0343824,42530.0,42524.0,0.167578]
[1644201721967,0.0343824,42530.0,42525.0,0.0156176]
[1644201722164,0.00039787,42529.0,42524.0,0.170578]
[1644201722364,0.00039787,42529.0,42524.0,0.1861956]
[1644201722567,0.0343824,42525.0,42524.0,0.053]
[1644201722767,0.0343824,42525.0,42524.0,0.003]
[1644201723166,0.03428282,42525.0,42524.0,0.003]
[1644201723364,0.03428282,42525.0,42523.0,0.03942242]
[1644201723365,0.03428282,42525.0,42523.0,0.02089155]
[1644201724013,0.03428282,42525.0,42523.0,0.02189155]
[1644201724618,0.25043483,42530.0,42523.0,0.02189155]
[1644201724815,0.24418446,42521.0,42518.0,0.3964]
[1644201725015,0.24418446,42521.0,42516.0,0.26558758]
[1644201725215,0.29418446,42521.0,42518.0,0.02038916]
[1644201725615,0.54405428,42521.0,42518.0,0.02038916]
[1644201725814,0.64405428,42521.0,42518.0,0.02038916]
[1644201726014,0.329583,42520.0,42518.0,0.02038916]
[1644201726816,0.69805428,42521.0,42518.0,0.02038916]
[1644201727278,0.64405428,42521.0,42517.0,0.00055924]
[1644201727667,0.329476,42520.0,42517.0,0.00055924]
[1644201727864,0.429476,42520.0,42508.0,0.00027797]
[1644201728065,0.1,42520.0,42517.0,0.00055924]
[1644201728265,0.26192242,42518.0,42517.0,0.00055924]
[1644201728464,0.64139942,42518.0,42517.0,0.00055924]
[1644201729064,0.92942164,42518.0,42508.0,0.07685039]
[1644201729265,0.59994464,42518.0,42515.0,0.00055925]
[1644201729464,0.329583,42517.0,42515.0,0.00055925]
[1644201729666,0.329477,42516.0,42515.0,0.00055925]
[1644201729869,0.379477,42516.0,42515.0,0.00055925]
[1644201730265,0.379477,42516.0,42511.0,0.0191458]
[1644201730266,0.80724003,42516.0,42511.0,0.0191458]
[1644201730467,0.80724003,42516.0,42513.0,0.0005407]
[1644201730468,0.60244648,42515.0,42513.0,0.0005407]
[1644201730868,0.329477,42514.0,42513.0,0.0005407]
[1644201731616,0.329477,42514.0,42511.0,0.00054072]
[1644201732020,0.013,42514.0,42513.0,0.05]
[1644201732218,0.013,42514.0,42513.0,0.379583]
[1644201733019,0.013,42514.0,42510.0,0.06879208]
[1644201733020,0.013,42514.0,42511.0,0.00054072]
[1644201733217,0.013,42514.0,42512.0,0.329583]
[1644201733417,0.4573005,42518.0,42511.0,0.00054072]
[1644201733418,0.24131095,42518.0,42511.0,0.00054072]
[1644201733619,0.29131095,42518.0,42511.0,0.00054072]
[1644201734018,0.05,42518.0,42512.0,0.00054257]
[1644201734220,0.3028012,42524.0,42515.0,0.00024907]
[1644201734419,0.25196631,42522.0,42515.0,0.00024907]
[1644201734620,0.329583,42520.0,42515.0,0.00024907]
[1644201735072,0.05,42521.0,42515.0,0.00024907]
[1644201735266,0.30196631,42522.0,42515.0,0.00067292]
[1644201735466,0.29344631,42522.0,42515.0,0.00067292]
[1644201735666,0.04148,42522.0,42515.0,0.00067292]
[1644201735866,0.36006241,42527.0,42515.0,0.00067292]
[1644201736068,0.1211,42530.0,42525.0,0.07520738]
[1644201736371,0.20129996,42537.0,42521.0,0.05]
[1644201736372,0.1,42538.0,42523.0,0.0433]
[1644201736668,0.27083248,42534.0,42523.0,0.0433]
[1644201737168,0.20462097,42532.0,42525.0,0.05]
[1644201737368,0.20462097,42532.0,42524.0,0.058795]
[1644201737570,0.20462097,42532.0,42525.0,0.05]
[1644201737766,0.20462097,42532.0,42524.0,0.058795]
[1644201738169,0.053,42532.0,42525.0,0.007]
[1644201738817,0.00039815,42531.0,42525.0,0.057]
[1644201739419,0.00039815,42531.0,42524.0,0.058795]
[1644201739718,0.379583,42530.0,42521.0,0.05]
[1644201739920,0.05,42530.0,42521.0,0.05]
[1644201740122,0.00039815,42530.0,42524.0,0.008]
[1644201740920,0.00039815,42530.0,42526.0,0.05]
[1644201741119,0.056,42531.0,42526.0,0.05]
[1644201741322,0.00039815,42529.0,42526.0,0.05]
[1644201741521,0.00039815,42529.0,42527.0,0.34721383]
[1644201741720,0.00039815,42529.0,42527.0,0.0433]
[1644201742119,0.00039815,42529.0,42528.0,0.08633203]
[1644201742373,0.001,42544.0,42528.0,0.08633203]
[1644201742572,0.00159232,42538.0,42530.0,0.05]
[1644201742780,0.00159232,42538.0,42531.0,0.058787]
[1644201742972,0.00159232,42538.0,42530.0,0.05]
[1644201743372,0.00159232,42538.0,42530.0,0.07010839]
[1644201743576,0.329583,42543.0,42536.0,0.05]
[1644201743775,0.00159236,42543.0,42541.0,0.05]
[1644201743975,0.00159236,42543.0,42541.0,0.0933]
[1644201744375,0.00159236,42543.0,42541.0,0.0433]
[1644201744674,0.329583,42542.0,42541.0,0.0433]
[1644201744874,0.53662539,42542.0,42541.0,0.0433]
[1644201745874,0.58662539,42542.0,42541.0,0.0433]
[1644201747118,0.379583,42542.0,42541.0,0.0433]
[1644201747318,0.05,42542.0,42541.0,0.0433]
[1644201747517,0.00139942,42544.0,42541.0,0.0433]